[Event "CCT Chesscom Classic-D1 2024"]
[Site "Online"]
[Date "2024.05.15"]
[Round "4"]
[White "Firouzja, Alireza"]
[Black "Carlsen, Magnus"]
[Result "1/2-1/2"]
[ECO "B13"]
[WhiteElo "2738"]
[BlackElo "2830"]
[Annotator "TA"]
[PlyCount "105"]
[EventDate "2024.05.08"]
[EventType "k.o."]
[EventCountry "NET"]
[TimeControl "600+2"]

{[%evp 36,105,37,43,46,43,89,93,96,79,143,134,116,123,145,0,0,0,24,17,290,294,288,280,380,393,362,379,319,50,87,81,66,0,0,0,30,25,25,0,602,71,337,0,2,2,2,9,253,260,260,260,260,260,260,0,0,0,0,0,0,0,0,0,0,0,0,0,0,0,0,0]} 1. d4 {[%emt 0:00:02]} d5 {[%emt 0:00:11]} 2. Bf4 {[%emt 0:00:21]} c5 {[%emt 0:00:03]} 3. e3 {[%emt 0:00:09]} cxd4 {[%emt 0:00:02]} 4. exd4 {[%emt 0:00:03]} Nc6 {[%emt 0:00:00]} 5. c3 {[%emt 0:00:40]} f6 {[%emt 0:00:03]} 6. Nf3 {[%emt 0:00:12] B13: Caro-Kann: Exchange Variation and Panov-Botvinnik Attack.} g5 {[%emt 0:00:09]} 7. Bg3 {[%emt 0:00:19]} Bf5 {[%emt 0:00:12]} 8. Nbd2 {[%emt 0:00:21]} h5 {[%emt 0:00:14]} 9. h3 {[%emt 0:00:17]} e6 {[%emt 0:00:03]} 10. Bb5 {[%emt 0:00:02]} Bd6 {[%emt 0:00:08]} 11. O-O $146 {[%emt 0:01:01]} ({Predecessor:} 11. Bxd6 Qxd6 12. Nb3 Nge7 13. Bd3 Kf7 14. Qe2 g4 15. hxg4 hxg4 16. Rxh8 Rxh8 17. Nfd2 {1-0 Frantsev,I-Maly,J (1417) CZE-ch U12 Herlikovice 2021 (3)}) 11... Nge7 {[%emt 0:00:13]} 12. Nb3 {[%emt 0:00:25]} a6 {[%emt 0:02:24]} 13. Bd3 {[%emt 0:00:59]} Bxg3 {[%emt 0:00:36]} 14. fxg3 {[%emt 0:00:02]} Qd6 {[%emt 0:00:00]} 15. Qe2 {[%emt 0:02:20]} Bxd3 {[%emt 0:01:30]} 16. Qxd3 {[%emt 0:00:02]} b6 {[%emt 0:00:08]} 17. Nh2 {[%emt 0:00:25]} f5 {[%emt 0:00:40]} 18. Rae1 {[%emt 0:00:09]} g4 {[%emt 0:00:05]} 19. h4 {[%emt 0:00:09]} Kd7 {[%emt 0:00:04]} 20. Rf2 {[%emt 0:00:04]} Ng8 {[%emt 0:00:32]} (20... Rhe8 $14) 21. Rfe2 $16 {[%emt 0:00:10]} Nd8 {[%emt 0:00:07]} 22. c4 $1 {[%emt 0:00:52]} dxc4 {[%emt 0:00:01]} (22... Nf6 $142) 23. Qxc4 $16 {[%emt 0:00:01]} Nf6 {[%emt 0:00:02]} 24. Nf1 {[%emt 0:00:11]} Re8 {[%emt 0:00:16]} 25. Qd3 {[%emt 0:00:45]} (25. Ne3 $1 $16 {[%cal Od4d5]} Nc6 (25... Qxg3 $2 26. d5 $18) 26. Rd1) 25... Nc6 $11 {[%emt 0:00:03]} 26. a3 {[%emt 0:00:14]} Ne4 {[%emt 0:00:45]} 27. Kh2 {[%emt 0:00:05]} Nc5 $2 {[%emt 0:00:11][%mdl 8192]} (27... Kc7 $1 $11) 28. Nxc5+ $18 {[%emt 0:00:12]} bxc5 {[%emt 0:00:02]} 29. Ne3 {[%emt 0:00:01]} Nxd4 {[%emt 0:00:20]} (29... Qxd4 30. Qc2 f4 31. Rd2 fxe3 32. Rxe3 $18 (32. Rxd4+ cxd4 33. Qh7+ Kd6 $16)) 30. Nc4 {[%emt 0:00:02]} Qc7 {[%emt 0:00:14]} 31. Re5 {[%emt 0:00:05]} Rad8 {[%emt 0:00:41]} 32. b4 $2 {[%emt 0:00:01]} (32. Qc3 $18 {Black must now prevent b4.} f4 33. gxf4) 32... Ke7 $14 {[%emt 0:00:02]} 33. Qe3 {[%emt 0:00:12]} (33. bxc5 $6 Nf3+ 34. gxf3 Rxd3 $11) (33. Rxc5 $2 Qxc5 34. bxc5 Nf3+ $19) 33... cxb4 {[%emt 0:00:03]} 34. Qg5+ {[%emt 0:00:10]} (34. Na5 $14 Kf7 (34... bxa3 $2 35. Nb3 $18) 35. axb4) 34... Kf8 $11 {[%emt 0:00:01]} 35. axb4 {[%emt 0:00:03]} Qg7 {[%emt 0:00:12]} 36. Qf4 {[%emt 0:00:04]} Qf6 {[%emt 0:00:04]} 37. Rc5 {[%emt 0:00:01]} Nc2 $2 {[%emt 0:00:11][%mdl 8192]} (37... Kg8 $11) 38. Rb1 $2 {[%emt 0:00:05]} (38. Rxe6 $1 $18 Qxe6 (38... Rxe6 $2 {too greedy.} 39. Rxf5 Ke7 40. Rxf6 $18) 39. Rxf5+ Ke7 40. Re5 (40. Rxh5 Kd7 $18)) 38... Rd4 $2 {[%emt 0:00:20][%mdl 8192] [#]} (38... Re7 $16 {was worth a try.}) 39. Ne5 $2 {[%emt 0:00:00]} (39. Qc1 $1 $18 {[%cal Rc1c2]}) 39... Rxf4 {[%emt 0:00:13]} 40. Nd7+ {[%emt 0:00:01]} Ke7 {[%emt 0:00:00]} 41. Nxf6 {[%emt 0:00:00]} Kxf6 $2 {[%emt 0:00:00]} (41... Rxb4 $11 {and Black stays safe.} 42. Rxb4 (42. Nxe8 Rxb1 43. Rxc2 Kxe8 $11) 42... Nxb4 43. Nxe8 Kxe8) 42. gxf4 $18 {[%emt 0:00:01]} Ne3 {[%emt 0:00:02]} 43. Re1 {[%emt 0:00:02]} g3+ {[%emt 0:00:04]} 44. Kxg3 {[%emt 0:00:03]} Rg8+ {[%emt 0:00:03]} 45. Kf3 $2 {[%emt 0:00:01]} (45. Kf2 $18 Nd5 46. Rc6) 45... Nxg2 $11 {[%emt 0:00:03]} 46. Rh1 {[%emt 0:00:03]} Rg4 {[%emt 0:00:01]} 47. Rc6 {[%emt 0:00:06]} Nxh4+ {[%emt 0:00:02]} 48. Ke2 {[%emt 0:00:02]} Rxf4 {[%emt 0:00:03]} 49. Rb1 {[%emt 0:00:01]} Re4+ {[%emt 0:00:03]} 50. Kf2 {[%emt 0:00:03]} Rf4+ {[%emt 0:00:01]} 51. Ke2 {[%emt 0:00:01]} Re4+ {[%emt 0:00:02]} 52. Kf2 {[%emt 0:00:00]} Rf4+ {[%emt 0:00:05]} 53. Ke2 {[%emt 0:00:01]} 1/2-1/2

[Event "CCT Chesscom Classic-D1 2024"]
[Site "Online"]
[Date "2024.05.15"]
[Round "5"]
[White "Carlsen, Magnus"]
[Black "Firouzja, Alireza"]
[Result "1/2-1/2"]
[ECO "C54"]
[WhiteElo "2830"]
[BlackElo "2738"]
[Annotator "TA"]
[PlyCount "70"]
[EventDate "2024.05.08"]
[EventType "k.o."]
[EventCountry "NET"]
[SourceTitle "playchess.com"]
[Source "ChessBase"]
[SourceQuality "1"]
[TimeControl "600+2"]

{[%evp 11,70,17,20,10,23,21,24,6,29,0,0,0,0,-20,-14,0,0,0,-5,0,0,-16,0,0,0,0,10,0,6,-48,-50,-52,-30,-84,-75,-110,-25,-19,-20,-15,-26,-18,-14,-54,-52,-50,-48,-49,-49,-58,-57,-57,-27,-36,-28,-43,-34,-134,-16,-14,-16]} 1. e4 {[%emt 0:00:02]} e5 {[%emt 0:00:05]} 2. Nf3 {[%emt 0:00:08]} Nc6 {[%emt 0:00:02]} 3. Bc4 {[%emt 0:00:01]} Nf6 {[%emt 0:00:01]} 4. d3 {[%emt 0:00:01]} Bc5 {[%emt 0:00:02]} 5. O-O {[%emt 0:00:02]} d6 {[%emt 0:00:03]} 6. c3 {[%emt 0:00:01]} a6 {[%emt 0:00:02]} 7. a4 {[%emt 0:00:01]} Ba7 {[%emt 0:00:05]} 8. Nbd2 {[%emt 0:00:02]} O-O {[%emt 0:00:03]} 9. h3 {[%emt 0:00:02] White has an edge.} Re8 {[%emt 0:00:07]} 10. Qb3 {[%emt 0:00:54]} Rf8 {[%emt 0:00:41]} 11. a5 {[%emt 0:00:04]} Nh5 {[%emt 0:00:15]} 12. Qd1 {[%emt 0:00:46][%cal Of3e5]} Qf6 {[%emt 0:00:22]} 13. Nb3 {[%emt 0:00:42]} Nf4 {[%emt 0:00:20]} 14. Be3 {[%emt 0:00:02]} Ne7 {[%emt 0:01:46]} 15. d4 {[%emt 0:00:27]} Neg6 {[%emt 0:00:37]} 16. Kh2 {[%emt 0:00:34]} c6 {[%emt 0:00:26]} (16... exd4 {feels hotter.} 17. cxd4 d5 18. exd5 Nxd5 19. Kh1 Ngf4) 17. dxe5 {[%emt 0:00:36] Active counter play!} Nxe5 {[%emt 0:00:53]} 18. Nxe5 {[%emt 0:00:54]} Qxe5 {[%emt 0:00:04]} 19. Bxa7 {[%emt 0:00:10]} Qxe4 {[%emt 0:00:26][%csl Gf4][%cal Re4g2] [#]} 20. f3 {[%emt 0:00:25]} (20. Rg1 $1 $11 Qxc4 (20... Rxa7 21. Qxd6 Qxc4 22. Nd2 $16) 21. Qxd6) 20... Qxc4 $15 {[%emt 0:00:02]} 21. Be3 {[%emt 0:00:04][%cal Ob3d2] And now Nd2! would win.} Nd3 {[%emt 0:00:20][%cal Of8e8]} 22. Nd2 {[%emt 0:00:08]} (22. Qd2 $1 $11) 22... Qb5 {[%emt 0:00:08][%cal Oc8f5]} 23. Ne4 {[%emt 0:00:07] [#]} Nxb2 {[%emt 0:00:16]} (23... Bf5 $1 $17 {Hoping for ...Bxe4.} 24. Bd4 c5 (24... Nxb2 25. c4 $11) 25. Nxd6 Qd7 (25... Qxb2 $2 {too greedy.} 26. Nxf5 cxd4 27. Qxd3 $18) 26. Nxf5 Qxf5) 24. Qd4 {[%emt 0:00:46][%cal Of1b1]} Qe5+ {[%emt 0:00:20]} 25. Qxe5 {[%emt 0:00:02]} dxe5 {[%emt 0:00:00]} 26. Rfb1 {[%emt 0:00:35]} Nc4 {[%emt 0:00:43]} 27. Bc5 {[%emt 0:00:01][%cal Ob1b4] aiming for Rb4!} Rd8 {[%emt 0:00:03]} 28. Rb4 {[%emt 0:00:03]} Be6 {[%emt 0:00:27]} 29. Rxb7 {[%emt 0:00:01]} h6 {[%emt 0:00:11]} 30. Bb6 {[%emt 0:00:10]} Rdb8 {[%emt 0:00:55]} 31. Re7 {[%emt 0:00:30]} Nxb6 {[%emt 0:00:07]} 32. axb6 {[%emt 0:00:01]} Rxb6 {[%emt 0:00:15] Strongly threatening ...Rb5.} 33. Nc5 {[%emt 0:00:01]} Bd5 {[%emt 0:00:06]} 34. Rxe5 {[%emt 0:00:03]} (34. Nd7 $1 $15 Rb2 35. Nxe5) 34... Rb5 {[%emt 0:00:06]} (34... Rb2 $17 35. Kg3 a5) 35. Rxa6 $11 {[%emt 0:00:13]} Rd8 {[%emt 0:00:07] Weighted Error Value: White=0.16 (very precise) /Black=0.17 (very precise) .  Mistake:       	White=3     	Black=2      Inaccurate:     	White=3     	Black=2      OK:         	White=10    	Black=11     Best:        	White=4     	Black=1} 1/2-1/2

[Event "CCT Chesscom Classic-D1 2024"]
[Site "Online"]
[Date "2024.05.15"]
[Round "5"]
[White "Firouzja, Alireza"]
[Black "Carlsen, Magnus"]
[Result "1-0"]
[ECO "C24"]
[WhiteElo "2738"]
[BlackElo "2830"]
[Annotator "TA"]
[PlyCount "83"]
[EventDate "2024.05.08"]
[EventType "k.o."]
[EventCountry "NET"]
[SourceTitle "playchess.com"]
[Source "ChessBase"]
[SourceQuality "1"]
[TimeControl "600+2"]

{[%evp 11,83,-19,-19,-22,-13,-15,-20,-18,-7,-10,-12,-17,-16,-19,4,3,12,17,20,28,21,6,44,0,45,35,109,92,173,162,211,217,219,211,321,331,314,338,335,334,351,355,368,343,371,365,358,363,344,306,303,286,316,317,447,416,447,449,543,542,591,543,571,468,529,527,523,527,552,516,958,911,936,911]} 1. e4 {[%emt 0:00:04]} e5 {[%emt 0:02:40]} 2. Bc4 {[%emt 0:00:03]} Nf6 {[%emt 0:00:04]} 3. d3 {[%emt 0:00:03]} c6 {[%emt 0:00:07]} 4. Nf3 {[%emt 0:00:04]} d5 {[%emt 0:00:08]} 5. Bb3 {[%emt 0:00:03]} Bd6 {[%emt 0:00:03]} 6. Nbd2 {[%emt 0:00:13]} O-O {[%emt 0:00:07] C24: Bishop's Opening: 2...Nf6.} 7. O-O {[%emt 0:00:02]} Re8 {[%emt 0:00:03]} 8. Re1 {[%emt 0:00:04]} Nbd7 {[%emt 0:00:03]} 9. c3 {[%emt 0:00:22]} Nc5 {[%emt 0:00:04]} 10. Bc2 {[%emt 0:00:03]} dxe4 {[%emt 0:00:03]} 11. dxe4 {[%emt 0:00:02]} Bc7 {[%emt 0:00:05]} 12. Qe2 {[%emt 0:00:06]} Qe7 $146 {[%emt 0:00:04]} ({Predecessor:} 12... Nh5 13. Nc4 Qf6 14. Bg5 Qg6 15. Be3 Nf4 16. Bxf4 exf4 17. e5 Qh6 18. b4 b5 19. bxc5 bxc4 20. Qxc4 {½-½ Bernasek,J (2498)-Mladek,R (2365) CZE-chT1W 2122 2021 (2.3)}) 13. b4 {[%emt 0:00:15]} Ne6 {[%emt 0:00:06]} 14. Nc4 {[%emt 0:00:03]} Nf4 {[%emt 0:00:03]} 15. Bxf4 {[%emt 0:00:06]} exf4 {[%emt 0:00:03]} 16. e5 {[%emt 0:00:08]} Nd5 {[%emt 0:00:03]} 17. h3 {[%emt 0:00:57]} (17. Nd6 $5) 17... g6 {[%emt 0:00:07]} (17... Nxc3 $2 18. Qd3 g6 19. Qxc3 $18) 18. Qd2 {[%emt 0:00:08]} Be6 {[%emt 0:00:03] [#]} ({Black should try} 18... Rd8 $14) 19. Nd6 $1 $16 {[%emt 0:00:11]} Red8 {[%emt 0:01:31]} (19... Bxd6 $16 20. exd6 Qxd6) 20. c4 $18 {[%emt 0:00:06]} Nb6 {[%emt 0:00:03]} (20... Nf6 $142) 21. c5 $18 {[%emt 0:00:03]} Nd5 {[%emt 0:00:02]} 22. Be4 {[%emt 0:00:06]} ({Don't play} 22. Nxb7 Rdb8) 22... b6 {[%emt 0:00:11]} (22... Rdb8 $142 23. Rad1 a6) 23. Nd4 $18 {[%emt 0:00:10]} Bd7 {[%emt 0:00:10]} 24. Bxd5 {[%emt 0:00:11]} cxd5 {[%emt 0:00:04]} 25. Qxf4 {[%emt 0:00:03]} bxc5 {[%emt 0:00:03]} 26. bxc5 {[%emt 0:00:02]} Rab8 {[%emt 0:00:08]} 27. Rab1 {[%emt 0:00:08]} Rxb1 {[%emt 0:00:42]} 28. Rxb1 {[%emt 0:00:03]} Rb8 {[%emt 0:00:03]} 29. Rxb8+ {[%emt 0:00:10]} Bxb8 {[%emt 0:00:02]} 30. Nf3 {[%emt 0:01:06]} Bc7 {[%emt 0:00:08]} 31. Qb4 {[%emt 0:00:04]} Bc6 {[%emt 0:00:16]} 32. Nc8 {[%emt 0:00:38]} Qd7 {[%emt 0:00:17]} (32... Qe8 {keeps fighting.}) 33. Nxa7 $18 {[%emt 0:00:06]} Ba4 {[%emt 0:00:03]} 34. Qb7 {[%emt 0:01:37]} d4 {[%emt 0:00:17]} 35. c6 {[%emt 0:00:03]} Qd8 {[%emt 0:00:06]} 36. Qb4 {[%emt 0:00:05]} Bc2 {[%emt 0:00:40]} 37. Nb5 {[%emt 0:00:14]} Be4 {[%emt 0:00:05]} 38. Nxc7 {[%emt 0:00:20]} ({Weaker is} 38. Nfxd4 Qg5 39. f3 (39. Nxc7 $2 Qxg2#) 39... Qe3+ 40. Kh1 Qc1+ 41. Kh2 Bxe5+ 42. g3 Qe3 $17) 38... Qxc7 {[%emt 0:00:03]} 39. Nxd4 {[%emt 0:00:15]} Qxe5 {[%emt 0:00:12]} 40. Qc4 {[%emt 0:00:45]} Qg5 {[%emt 0:00:13]} (40... Kg7 $142 41. Nf3 Qa1+ 42. Kh2 Bxc6 43. Qxc6 Qxa2 44. Qc3+ Kg8) 41. f3 $18 {[%emt 0:00:08]} Qe3+ {[%emt 0:00:04] [#]} 42. Kh1 $1 {[%emt 0:00:05]} 1-0

[Event "CCT Chesscom Classic-D1 2024"]
[Site "Online"]
[Date "2024.05.15"]
[Round "5"]
[White "Firouzja, Alireza"]
[Black "Carlsen, Magnus"]
[Result "1/2-1/2"]
[ECO "C43"]
[WhiteElo "2738"]
[BlackElo "2830"]
[Annotator "TA"]
[PlyCount "59"]
[EventDate "2024.05.08"]
[EventType "k.o."]
[EventCountry "NET"]
[TimeControl "600+2"]

{[%evp 9,59,0,29,0,9,0,0,14,21,11,10,0,15,0,4,-14,-12,-11,-20,-13,17,0,10,12,31,32,18,19,90,67,72,62,47,49,62,53,47,59,58,59,64,56,56,64,56,25,29,28,34,14,9,0]} 1. e4 {[%emt 0:00:02]} e5 {[%emt 0:00:03]} 2. Nf3 {[%emt 0:00:01]} Nf6 {[%emt 0:00:02]} 3. d4 {[%emt 0:00:14]} Nxe4 {[%emt 0:00:02]} 4. dxe5 {[%emt 0:00:02]} d5 {[%emt 0:00:02]} 5. Nbd2 {[%emt 0:00:05][%cal Bb1d2,Bd2f1,Bf1g3][%mdl 32]} Qd7 {[%emt 0:00:02]} 6. Bd3 {[%emt 0:00:04]} Nc5 {[%emt 0:00:04]} 7. Be2 {[%emt 0:00:01]} Ne6 {[%emt 0:00:16]} 8. O-O {[%emt 0:00:20]} b6 {[%emt 0:00:08]} 9. Re1 {[%emt 0:00:26]} Bb7 {[%emt 0:00:02]} 10. Nf1 {[%emt 0:00:09]} c5 {[%emt 0:00:10]} 11. c3 {[%emt 0:00:11]} Nc6 {[%emt 0:00:03]} 12. Ng3 {[%emt 0:02:03]} g6 {[%emt 0:00:22]} 13. Bg5 {[%emt 0:00:41]} Bg7 {[%emt 0:00:14]} 14. Bf6 {[%emt 0:00:18]} O-O {[%emt 0:01:33]} 15. Qd2 {[%emt 0:00:12]} Bxf6 {[%emt 0:02:07]} 16. exf6 {[%emt 0:00:02] [#] Intending Qh6 and mate.} Qc7 {[%emt 0:00:13]} 17. Bb5 {[%emt 0:01:58][%cal Ob5c6] Black must now prevent Bxc6!} (17. Qxd5 Ncd4 18. Qe5 Qxe5 19. Nxe5 Nc2 $16) 17... Qf4 $1 {[%emt 0:00:02]} 18. Qxd5 {[%emt 0:00:19]} Ncd8 {[%emt 0:00:01]} (18... Nc7 $11 19. Qc4 Qxf6) 19. Qe5 {[%emt 0:00:16] White is much more active. The black rooks are passive.} Bxf3 {[%emt 0:00:02]} 20. Qxf4 {[%emt 0:00:01]} Nxf4 {[%emt 0:00:01]} 21. gxf3 {[%emt 0:00:01]} Nde6 {[%emt 0:00:02]} 22. Rad1 {[%emt 0:00:03]} Rad8 {[%emt 0:00:03]} 23. Ne4 {[%emt 0:00:07] Prevents Ng5} g5 {[%emt 0:00:32]} 24. Bd7 {[%emt 0:00:15]} h6 {[%emt 0:00:07]} 25. Rd6 {[%emt 0:00:21]} Kh7 {[%emt 0:00:22]} 26. Red1 {[%emt 0:00:17]} Kg6 {[%emt 0:00:01]} 27. Ba4 {[%emt 0:00:23]} Rxd6 {[%emt 0:00:04]} 28. Rxd6 {[%emt 0:00:01]} Rd8 {[%emt 0:00:06]} 29. Rxd8 {[%emt 0:00:09]} Nxd8 {[%emt 0:00:01]} 30. Bc2 {[%emt 0:00:02] Repels Nd3.   Weighted Error Value: White=0.09 (flawless) /Black=0.08 (flawless) .  Mistake:       	---       	Black=1      Inaccurate:     	White=1     	Black=1      OK:         	White=10    	Black=10     Best:        	---       	Black=2      Strong:       	---       	Black=1} 1/2-1/2

[Event "CCT Chesscom Classic-D1 2024"]
[Site "Online"]
[Date "2024.05.11"]
[Round "51"]
[White "Nepomniachtchi, Ian"]
[Black "Ivic, Velimir"]
[Result "1-0"]
[ECO "B31"]
[WhiteElo "2770"]
[BlackElo "2596"]
[Annotator "TA"]
[PlyCount "109"]
[EventDate "2024.05.08"]
[EventType "k.o."]
[EventCountry "NET"]
[SourceTitle "playchess.com"]
[Source "ChessBase"]
[SourceQuality "1"]
[TimeControl "600+2"]

{[%evp 14,109,18,22,20,15,15,4,1,0,26,0,-3,-4,0,-3,-12,-4,-11,0,0,0,0,0,0,0,0,0,0,-26,-14,-83,-74,-61,-66,-75,-41,-85,-33,-44,0,0,0,0,9,0,27,0,0,0,0,0,16,0,32,48,42,19,44,33,39,33,45,30,54,44,68,46,49,46,73,34,54,31,54,56,95,95,99,95,164,65,59,54,306,265,246,0,295,295,353,346,335,301,744,740,1150,1083]} 1. e4 {[%emt 0:00:03]} c5 {[%emt 0:00:03]} 2. Nf3 {[%emt 0:00:01]} Nc6 {[%emt 0:00:01]} 3. Bb5 {[%emt 0:00:01]} g6 {[%emt 0:00:00]} 4. O-O {[%emt 0:00:05]} Bg7 {[%emt 0:00:01]} 5. Re1 {[%emt 0:00:01]} e5 {[%emt 0:00:01]} 6. Bxc6 {[%emt 0:00:03]} dxc6 {[%emt 0:00:01]} 7. d3 {[%emt 0:00:02]} Qe7 {[%emt 0:00:02]} 8. a4 {[%emt 0:00:03]} Nf6 {[%emt 0:00:03]} 9. a5 {[%emt 0:00:01]} O-O {[%emt 0:00:02]} 10. Be3 {[%emt 0:00:06]} Rd8 {[%emt 0:00:05] The position is equal.} 11. Qc1 {[%emt 0:00:02]} Ne8 {[%emt 0:00:33]} 12. Nbd2 {[%emt 0:00:21]} Nc7 {[%emt 0:00:09]} 13. Nc4 {[%emt 0:00:06]} f6 {[%emt 0:00:12]} 14. Nfd2 {[%emt 0:00:38]} Ne6 {[%emt 0:00:18] Against f4} 15. Nb3 {[%emt 0:00:21]} Rb8 {[%emt 0:00:17]} 16. Nbd2 {[%emt 0:01:50]} b5 {[%emt 0:00:17]} 17. axb6 {[%emt 0:00:02]} axb6 {[%emt 0:00:00]} 18. b4 {[%emt 0:00:02]} b5 {[%emt 0:01:18]} 19. Na5 {[%emt 0:00:04]} Bd7 $36 {[%emt 0:00:01][%mdl 2048] Black has some pressure.} 20. bxc5 {[%emt 0:00:18]} Nxc5 {[%emt 0:00:00]} 21. Ndb3 {[%emt 0:01:11]} Na4 {[%emt 0:00:17]} 22. Bh6 {[%emt 0:00:02]} (22. c4 $11 {keeps the balance.}) 22... c5 {[%emt 0:01:09]} 23. Bxg7 {[%emt 0:00:06]} Kxg7 {[%emt 0:00:00]} 24. Qe3 {[%emt 0:00:19]} Rdc8 {[%emt 0:00:31]} 25. Nd2 {[%emt 0:00:06]} Ra8 {[%emt 0:00:18]} (25... Qd8 $17 26. Nab3 c4 27. dxc4 bxc4) 26. Nab3 $15 {[%emt 0:00:04][%cal Ba5b3,Bb3c1,Bc1e2][%mdl 32]} c4 {[%emt 0:00:33]} 27. dxc4 {[%emt 0:00:00]} bxc4 {[%emt 0:00:00]} 28. Nc1 {[%emt 0:00:01]} Be6 {[%emt 0:00:23]} 29. Ne2 {[%emt 0:00:08]} c3 {[%emt 0:00:10]} 30. Nb3 {[%emt 0:00:41]} Qb4 {[%emt 0:01:25]} 31. Reb1 {[%emt 0:00:10]} Qc4 {[%emt 0:00:03]} 32. Nbc1 {[%emt 0:00:06]} Nc5 {[%emt 0:00:40]} 33. f3 {[%emt 0:00:51]} (33. Qxc3 Qxe4 (33... Nxe4 34. Qxc4 Bxc4 35. Rxa8 $19) 34. Ng3 Rxa1 35. Rxa1 Qb7 $15) 33... Nd7 {[%emt 0:00:41]} 34. Rxa8 {[%emt 0:00:10]} Rxa8 {[%emt 0:00:01]} 35. Qxc3 {[%emt 0:00:06]} Qxc3 {[%emt 0:00:12]} 36. Nxc3 {[%emt 0:00:00]} Rc8 {[%emt 0:00:01]} 37. N1e2 {[%emt 0:00:03]} f5 {[%emt 0:00:03]} 38. Rb2 {[%emt 0:00:05]} Kf7 {[%emt 0:00:06]} 39. Kf2 {[%emt 0:00:03]} Ke7 {[%emt 0:00:07]} 40. Ke3 {[%emt 0:00:08]} h5 {[%emt 0:00:28]} 41. h4 {[%emt 0:00:03]} f4+ {[%emt 0:00:05]} 42. Kf2 {[%emt 0:00:05]} Rc7 {[%emt 0:00:22]} 43. Nd1 {[%emt 0:00:25]} Bc4 {[%emt 0:00:08]} 44. Ke1 {[%emt 0:00:10]} Nc5 {[%emt 0:00:06]} 45. Nec3 {[%emt 0:00:18] Prevents Na4} Ne6 {[%emt 0:00:01] [#]} 46. Nf2 $1 {[%emt 0:00:10] Black must now prevent Nd3.} Nd4 {[%emt 0:00:02] [#]} (46... Rc6 $16 {might work better.} 47. Nd5+ Kd6) 47. Kd2 {[%emt 0:00:05]} (47. Nd3 $1 $18 {[%cal Rd3e5]} Kf6 48. Kd2) 47... Rd7 $14 {[%emt 0:00:02]} 48. Nd3 {[%emt 0:00:01]} Nxc2 $2 {[%emt 0:00:02][%mdl 8192]} 49. Nd5+ $18 {[%emt 0:00:09]} Bxd5 {[%emt 0:00:02]} 50. Nxe5 {[%emt 0:00:10]} (50. Rxc2 Bf7 $16) (50. Kxc2 $18 Rc7+ 51. Kd2) 50... Rd6 {[%emt 0:00:17][%mdl 8192]} (50... Bxe4+ 51. Nxd7 Ne3 52. fxe4 $18) (50... Ne3 $11 51. Nxd7 (51. exd5 $2 Rxd5+ 52. Nd3 Nc4+ 53. Kc3 Nxb2 $19) 51... Nc4+ 52. Kc2 Kxd7) 51. Kxc2 {[%emt 0:00:04]} (51. Rxc2 $2 {perishes.} Bxe4+ 52. Kc3 Bxc2 53. Kxc2 Re6 $19) 51... Ba8 {[%emt 0:00:02]} 52. Ra2 {[%emt 0:00:09]} Bc6 {[%emt 0:00:02]} 53. Ra7+ {[%emt 0:00:07]} Kf6 $2 {[%emt 0:00:01]} (53... Kf8 54. Nd3 (54. Rf7+ Kg8 $18) 54... Kg8) 54. Nd3 {[%emt 0:00:02] Hoping for e5+.} Rd8 {[%emt 0:00:03]} 55. Ra6 {[%emt 0:00:04] Weighted Error Value: White=0.19 (very precise) /Black=0.34.  Loses game:     	---       	Black=2      Missed win:     	White=1     	---        Mistake:       	White=2     	Black=3      Inaccurate:     	White=5     	Black=8      OK:         	White=19    	Black=10     Best:        	White=3     	Black=1      Strong:       	White=1     	---} 1-0